fUSD/lending_fUSD_20260621
["ID","MTS","AMOUNT","RATE_DAILY","PERIOD"]
[425901845,1782031867000,-500.0,0.00027945,2]
[425901850,1782031867000,-500.0,0.00027945,2]
[425901841,1782031867000,-500.0,0.00027945,2]
[425901842,1782031867000,-500.0,0.00027945,2]
[425901843,1782031867000,-500.0,0.00027945,2]
[425901851,1782031867000,-527.61,0.00027945,2]
[425901844,1782031867000,-510.48,0.00027945,2]
[425901848,1782031867000,-3436.29,0.00027945,2]
[425901854,1782031867000,-500.0,0.00027945,2]
[425901863,1782031867000,-509.75,0.00027945,2]
[425901864,1782031867000,-520.25749114,0.00027945,2]
[425901834,1782031867000,-500.0,0.00027945,2]
[425901856,1782031867000,-1484.43,0.00027945,2]
[425901853,1782031867000,-1993.82,0.00027945,2]
[425901846,1782031867000,-588.47,0.00027945,2]
[425901847,1782031867000,-500.0,0.00027945,2]
[425901855,1782031867000,-1530.08,0.00027945,2]
[425901885,1782031886000,1421.0,9.984e-05,2]
[425901886,1782031886000,3579.0,9.984e-05,2]
[425901887,1782031887000,616.52319356,9.974e-05,2]
[425901889,1782032004000,150.0,0.00010053,2]
[425901890,1782032064000,150.0,0.00010053,2]
[425901891,1782032083000,158.63,0.00030137,120]
[425901895,1782032125000,150.0,0.00010053,2]
[425901898,1782032190000,834.25789161,9.885e-05,2]
[425901899,1782032191000,811.36525831,9.79e-05,2]
[425901901,1782032219000,207.34573836,0.0001,2]
[425901905,1782032259000,-150.0,0.00010364,2]
[425901906,1782032270000,200.0,0.00010683,7]
[425901907,1782032312000,-157.86,0.0001013,2]
[425901908,1782032366000,-17224.10914193,0.00010215,2]
[425901910,1782032382000,-441.23085807,0.00010215,2]
[425901909,1782032382000,500.0,9.951e-05,2]
[425901911,1782032383000,158.59,9.862e-05,2]
[425901913,1782032402000,500.0,9.951e-05,2]
[425901912,1782032402000,500.0,9.951e-05,2]
[425901914,1782032403000,252.79208522,9.951e-05,2]
[425901915,1782032404000,3795.38,0.00010006,2]
[425901916,1782032433000,-196.0,0.00010316,2]
[425901917,1782032445000,922.36,0.00029452,120]
[425901921,1782032487000,200.0,9.96e-05,2]
[425901920,1782032487000,-196.0,0.00010418,2]
[425901928,1782032522000,150.0,0.00030136,120]
[425901930,1782032541000,-250.0,0.00010419,2]
[425901933,1782032594000,-150.0,0.00010419,2]
[425901934,1782032647000,-163.21078892,0.00010419,2]
[425901935,1782032702000,-514.51360402,0.00010451,2]
[425901936,1782032709000,2436.8,0.00010086,2]
[425901938,1782032870000,200.0,9.949e-05,2]
[425901939,1782032873000,200.0,9.949e-05,2]
[425901940,1782032935000,-500.0,0.00010449,2]
[425901941,1782032935000,-500.0,0.00010449,2]
[425901945,1782032935000,-447.14678596,0.00010449,2]
[425901943,1782032935000,-613.46376056,0.00010449,2]
[425901944,1782032935000,-500.0,0.00010449,2]
[425901942,1782032935000,-500.0,0.00010449,2]
[425901948,1782032935000,-260.13917122,0.00010449,2]
[425901949,1782032935000,-500.0,0.00010449,2]
[425901947,1782032935000,-500.0,0.00010449,2]
[425901950,1782032935000,-373.94428555,0.00010449,2]
[425901951,1782032935000,-315.70891182,0.00010449,2]
[425901946,1782032935000,-52.85321404,0.00010449,2]
[425901953,1782032936000,-390.18626467,0.00010449,2]
[425901952,1782032936000,-500.0,0.00010449,2]
[425901955,1782032964000,-109.81373533,0.00010449,2]
[425901956,1782032979000,959.552927,0.00030136,120]
[425901957,1782032980000,-500.0,0.00010449,2]
[425901959,1782032980000,-500.0,0.00010449,2]
[425901958,1782032980000,-500.0,0.00010449,2]
[425901960,1782032980000,-500.0,0.00010449,2]
[425901961,1782032980000,-500.0,0.00010449,2]
[425901962,1782032980000,-500.0,0.00010449,2]
[425901964,1782032980000,-320.32060561,0.00010449,2]
[425901965,1782032980000,-500.0,0.00010449,2]
[425901966,1782032980000,-500.0,0.00010449,2]
[425901967,1782032980000,-500.0,0.00010449,2]
[425901968,1782032980000,-500.0,0.00010449,2]
[425901969,1782032980000,-500.0,0.00010449,2]
[425901970,1782032980000,-25.20651649,0.00010449,2]
[425901963,1782032980000,-179.67939439,0.00010449,2]
[425901972,1782032981000,-25.20651649,0.00010449,2]
[425901971,1782032981000,-474.79348351,0.00010449,2]
[425901977,1782032985000,-500.0,0.00010449,2]
[425901973,1782032985000,-474.79348351,0.00010449,2]
[425901974,1782032985000,-500.0,0.00010449,2]
[425901975,1782032985000,-500.0,0.00010449,2]
[425901976,1782032985000,-500.0,0.00010449,2]
[425901978,1782032985000,-500.0,0.00010449,2]
[425901986,1782032985000,-130.2057661,0.00010449,2]
[425901980,1782032985000,-174.60995879,0.00010449,2]
[425901981,1782032985000,-500.0,0.00010449,2]
[425901983,1782032985000,-500.0,0.00010449,2]
[425901982,1782032985000,-500.0,0.00010449,2]
[425901984,1782032985000,-500.0,0.00010449,2]
[425901985,1782032985000,-500.0,0.00010449,2]
[425901979,1782032985000,-325.39004121,0.00010449,2]
[425901987,1782033017000,-150.0,0.00010449,2]
[425902011,1782033032000,-369.7942339,0.00010449,2]
[425902012,1782033032000,-500.0,0.00010449,2]
[425902013,1782033032000,-500.0,0.00010449,2]
[425902014,1782033032000,-500.0,0.00010449,2]
[425902017,1782033032000,-500.0,0.00010449,2]
[425902015,1782033032000,-500.0,0.00010449,2]
[425902019,1782033032000,-447.51072419,0.00010449,2]
[425902018,1782033032000,-52.48927581,0.00010449,2]
[425902016,1782033032000,-500.0,0.00010449,2]
[425902020,1782033033000,-516.48411288,0.00010449,2]
[425902022,1782033033000,-516.48411288,0.00010449,2]
[425902023,1782033033000,-516.48411288,0.00010449,2]
[425902024,1782033033000,-7.33695177,0.00010449,2]
[425902021,1782033033000,-516.48411288,0.00010449,2]
[425902025,1782033034000,-369.7942339,0.00010449,2]
[425902041,1782033036000,-171.23371776,0.000106,2]
[425902050,1782033036000,-2581.07,0.00010894,2]
[425902048,1782033036000,-157.0,0.00010869,2]
[425902051,1782033036000,-150.0,0.00010959,2]
[425902049,1782033036000,-859.95,0.00010888,2]
[425902047,1782033036000,-157.0,0.00010765,2]
[425902046,1782033036000,-160.0,0.00010707,2]
[425902044,1782033036000,-157.0,0.0001066,2]
[425902045,1782033036000,-1000.0,0.00010684,2]
[425902042,1782033036000,-3951.22,0.00010645,2]
[425902043,1782033036000,-4559.66,0.00010645,2]
[425902040,1782033036000,-209.622,0.00010585,2]
[425902029,1782033036000,-2120.52,0.00010453,2]
[425902038,1782033036000,-6828.6382,0.00010585,2]
[425902036,1782033036000,-633.7672,0.00010585,2]
[425902035,1782033036000,-6838.64027692,0.00010585,2]
[425902037,1782033036000,-2500.0,0.00010585,2]
[425902033,1782033036000,-157.0,0.00010556,2]
[425902034,1782033036000,-1000.0,0.00010581,2]
[425902032,1782033036000,-10000.0,0.000105,2]
[425902030,1782033036000,-216.32317309,0.00010455,2]
[425902031,1782033036000,-1000.0,0.00010499,2]
[425902028,1782033036000,-1073.08,0.00010452,2]
[425902026,1782033036000,-250.0,0.0001045,2]
[425902027,1782033036000,-150.0,0.00010451,2]
[425902039,1782033036000,-4096.066,0.00010585,2]
[425902052,1782033036000,-166.66,0.00010959,2]
[425902053,1782033036000,-157.0,0.00010974,2]
[425902056,1782033036000,-8538.20829632,0.00011099,2]
[425902054,1782033036000,-166.66,0.00011068,2]
[425902082,1782033036000,-49.73775916,0.00012635,2]
[425902079,1782033036000,-1000.0,0.00012635,2]
[425902080,1782033036000,-1000.0,0.00012635,2]
[425902078,1782033036000,-1000.0,0.00012635,2]
[425902077,1782033036000,-1000.0,0.00012635,2]
[425902071,1782033036000,-5000.0,0.00011835,2]
[425902075,1782033036000,-1000.0,0.00012635,2]
[425902073,1782033036000,-6274.043,0.00012535,2]
[425902074,1782033036000,-1000.0,0.00012635,2]
[425902070,1782033036000,-2776.07389361,0.00011825,2]
[425902069,1782033036000,-166.66,0.00011507,2]
[425902072,1782033036000,-8538.20829626,0.00012456,2]
[425902081,1782033036000,-1000.0,0.00012635,2]
[425902068,1782033036000,-158.59,0.00011506,2]
[425902076,1782033036000,-1000.0,0.00012635,2]
[425902059,1782033036000,-152.57,0.00011233,2]
[425902057,1782033036000,-166.66,0.00011178,2]
[425902055,1782033036000,-157.0,0.00011078,2]
[425902060,1782033036000,-157.0,0.00011287,2]
[425902062,1782033036000,-157.0,0.00011392,2]
[425902058,1782033036000,-157.0,0.00011183,2]
[425902061,1782033036000,-166.66,0.00011288,2]
[425902064,1782033036000,-166.66,0.00011397,2]
[425902066,1782033036000,-250.0,0.00011495,2]
[425902065,1782033036000,-250.0,0.00011494,2]
[425902063,1782033036000,-157.86,0.00011397,2]
[425902067,1782033036000,-161.0,0.00011496,2]
[425902097,1782033037000,-500.0,0.00013698,2]
[425902098,1782033037000,-500.0,0.00013698,2]
[425902099,1782033037000,-334.16489871,0.00013698,2]
[425902101,1782033037000,-500.0,0.00013698,2]
[425902109,1782033037000,-500.0,0.00013698,2]
[425902104,1782033037000,-500.0,0.00013698,2]
[425902107,1782033037000,-500.0,0.00013698,2]
[425902103,1782033037000,-500.0,0.00013698,2]
[425902102,1782033037000,-500.0,0.00013698,2]
[425902094,1782033037000,-500.0,0.00013698,2]
[425902100,1782033037000,-500.0,0.00013698,2]
[425902095,1782033037000,-500.0,0.00013698,2]
[425902087,1782033037000,-158.59,0.0001315,2]
[425902093,1782033037000,-500.0,0.00013698,2]
[425902092,1782033037000,-550.72092856,0.00013698,2]
[425902091,1782033037000,-500.0,0.00013698,2]
[425902090,1782033037000,-500.0,0.00013698,2]
[425902088,1782033037000,-500.0,0.00013698,2]
[425902089,1782033037000,-500.0,0.00013698,2]
[425902086,1782033037000,-1700.67876949,0.00012726,3]
[425902083,1782033037000,-950.26224084,0.00012635,2]
[425902084,1782033037000,-157.86,0.00012663,2]
[425902085,1782033037000,-23299.32123051,0.00012726,3]
[425902106,1782033037000,-500.0,0.00013698,2]
[425902096,1782033037000,-500.0,0.00013698,2]
[425902108,1782033037000,-500.0,0.00013698,2]
[425902112,1782033037000,-187.36,0.00013698,2]
[425902136,1782033037000,-820.39285962,0.00015,2]
[425902138,1782033037000,-514.46740334,0.00015,2]
[425902105,1782033037000,-500.0,0.00013698,2]
[425902140,1782033037000,-1222.84,0.00015,2]
[425902133,1782033037000,-648.0,0.00015,2]
[425902132,1782033037000,-12760.45658921,0.00015,2]
[425902127,1782033037000,-171.23371776,0.0001415,2]
[425902131,1782033037000,-158.59,0.00014794,2]
[425902129,1782033037000,-2662.35,0.00014311,2]
[425902130,1782033037000,-3134.42014479,0.00014311,2]
[425902128,1782033037000,-2741.43815147,0.00014311,2]
[425902125,1782033037000,-154.26333622,0.00014138,2]
[425902123,1782033037000,-1020.13,0.00013699,2]
[425902126,1782033037000,-288.50393753,0.00014138,2]
[425902122,1782033037000,-500.0,0.00013698,2]
[425902110,1782033037000,-500.0,0.00013698,2]
[425902111,1782033037000,-500.0,0.00013698,2]
[425902124,1782033037000,-157.86,0.00013929,2]
[425902113,1782033037000,-500.0,0.00013698,2]
[425902119,1782033037000,-500.0,0.00013698,2]
[425902118,1782033037000,-500.0,0.00013698,2]
[425902114,1782033037000,-500.0,0.00013698,2]
[425902120,1782033037000,-504.91075483,0.00013698,2]
[425902121,1782033037000,-500.0,0.00013698,2]
[425902116,1782033037000,-239.81929128,0.00013698,2]
[425902117,1782033037000,-500.0,0.00013698,2]
[425902115,1782033037000,-500.0,0.00013698,2]
[425902159,1782033039000,-4975.05564958,0.000185,2]
[425902163,1782033039000,-150.99,0.00018533,2]
[425902158,1782033039000,-1627.0,0.00018042,5]
[425902153,1782033039000,-848.01738386,0.00017573,2]
[425902160,1782033039000,-927.77084688,0.000185,2]
[425902157,1782033039000,-8538.20829626,0.00018021,2]
[425902161,1782033039000,-300.1,0.00018533,2]
[425902155,1782033039000,-2000.0,0.000178,2]
[425902154,1782033039000,-171.23371776,0.000177,2]
[425902152,1782033039000,-566.87920233,0.00017573,2]
[425902156,1782033039000,-216.32317309,0.00018,10]
[425902150,1782033039000,-518.16,0.00017176,2]
[425902145,1782033039000,-199.5,0.00015451,2]
[425902149,1782033039000,-321.33849935,0.00016573,2]
[425902147,1782033039000,-8538.20829626,0.00016166,2]
[425902142,1782033039000,-46760.9512726,0.00015,2]
[425902144,1782033039000,-157.86,0.00015196,2]
[425902146,1782033039000,-216.32317309,0.00016,3]
[425902148,1782033039000,-162.791075,0.00016438,2]
[425902143,1782033039000,-25005.40542496,0.00015,10]
[425902166,1782033039000,-7674.22,0.00018533,2]
[425902151,1782033039000,-1005.02767133,0.00017473,2]
[425902171,1782033039000,-927.77084688,0.000187,2]
[425902170,1782033039000,-4975.05564958,0.000187,2]
[425902168,1782033039000,-263.694733,0.0001862,2]
[425902192,1782033039000,-151.0,0.00019726,2]
[425902191,1782033039000,-151.0,0.00019726,2]
[425902167,1782033039000,-831.53404831,0.000186,2]
[425902190,1782033039000,-987.10530548,0.00019726,2]
[425902184,1782033039000,-163.76126679,0.00019726,2]
[425902187,1782033039000,-1148.61238259,0.00019726,2]
[425902185,1782033039000,-1068.11,0.00019726,2]
[425902188,1782033039000,-1191.11104074,0.00019726,2]
[425902183,1782033039000,-1030.0,0.00019726,2]
[425902186,1782033039000,-1107.63007,0.00019726,2]
[425902182,1782033039000,-156.84738482,0.00019726,2]
[425902181,1782033039000,-4975.05564958,0.000196,2]
[425902189,1782033039000,-1235.18214925,0.00019726,2]
[425902179,1782033039000,-1005.02767128,0.00019366,2]
[425902177,1782033039000,-4975.05564958,0.000192,2]
[425902178,1782033039000,-927.77084688,0.000192,2]
[425902175,1782033039000,-927.77084688,0.00019,2]
[425902176,1782033039000,-413316.23549227,0.00019,2]
[425902172,1782033039000,-4975.05564958,0.000189,2]
[425902174,1782033039000,-4975.05564958,0.00019,2]
[425902173,1782033039000,-927.77084688,0.000189,2]
[425902180,1782033039000,-4975.05564958,0.000194,2]
[425902169,1782033039000,-248.417291,0.0001862,2]
[425902233,1782033040000,-518.45,0.00021273,2]
[425902224,1782033040000,-190.41371826,0.00020702,2]
[425902219,1782033040000,-500.0,0.00020702,2]
[425902221,1782033040000,-500.0,0.00020702,2]
[425902220,1782033040000,-500.0,0.00020702,2]
[425902237,1782033040000,-156.84738483,0.0002137,2]
[425902217,1782033040000,-500.0,0.00020702,2]
[425902222,1782033040000,-500.0,0.00020702,2]
[425902226,1782033040000,-156.84738482,0.00020822,2]
[425902240,1782033040000,-5000.0,0.00021918,2]
[425902228,1782033040000,-170.0,0.00021,2]
[425902230,1782033040000,-1097.0,0.0002125,5]
[425902231,1782033040000,-171.23371776,0.0002125,2]
[425902235,1782033040000,-1146.4,0.00021273,2]
[425902232,1782033040000,-1005.02767128,0.00021258,2]
[425902238,1782033040000,-398.60601364,0.00021627,2]
[425902241,1782033040000,-6081.0,0.00022217,2]
[425902218,1782033040000,-500.0,0.00020702,2]
[425902242,1782033040000,-3647.0,0.00022217,2]
[425902239,1782033040000,-8538.20829626,0.00021732,2]
[425902214,1782033040000,-500.0,0.00020702,2]
[425902253,1782033040000,-1147.3902,0.00025073,14]
[425902212,1782033040000,-500.0,0.00020702,2]
[425902243,1782033040000,-1005.02767128,0.00023151,2]
[425902193,1782033040000,-151.0,0.00019726,2]
[425902194,1782033040000,-151.0,0.00019726,2]
[425902195,1782033040000,-151.0,0.00019726,2]
[425902196,1782033040000,-151.0,0.00019726,2]
[425902197,1782033040000,-151.0,0.00019726,2]
[425902198,1782033040000,-151.0,0.00019726,2]
[425902199,1782033040000,-151.0,0.00019726,2]
[425902200,1782033040000,-151.0,0.00019726,2]
[425902213,1782033040000,-515.55433603,0.00020702,2]
[425902201,1782033040000,-151.0,0.00019726,2]
[425902208,1782033040000,-4606.04,0.0002,2]
[425902204,1782033040000,-8538.20829626,0.00019877,2]
[425902206,1782033040000,-158.0,0.0002,2]
[425902207,1782033040000,-174.0,0.0002,2]
[425902205,1782033040000,-4975.05564958,0.0002,2]
[425902203,1782033040000,-4975.05564958,0.000198,2]
[425902211,1782033040000,-249.0,0.00020451,2]
[425902209,1782033040000,-4975.05564958,0.000202,2]
[425902210,1782033040000,-156.84738482,0.00020274,2]
[425902202,1782033040000,-1000.0,0.00019749,2]
[425902249,1782033040000,-236.17,0.00024658,2]
[425902266,1782033040000,-150.01,0.00027232,2]
[425902246,1782033040000,-150.0,0.00024333,2]
[425902268,1782033040000,-8538.20829626,0.00027297,2]
[425902270,1782033040000,-398.60601362,0.00027297,2]
[425902274,1782033040000,-500.0,0.00027396,2]
[425902272,1782033040000,-163.8059253,0.00027387,2]
[425902273,1782033040000,-503.97099734,0.00027396,2]
[425902277,1782033040000,-500.0,0.00027396,2]
[425902279,1782033040000,-500.0,0.00027396,2]
[425902278,1782033040000,-500.0,0.00027396,2]
[425902281,1782033040000,-536.15970734,0.00027396,2]
[425902271,1782033040000,-183.24,0.00027332,2]
[425902280,1782033040000,-501.81106036,0.00027396,2]
[425902247,1782033040000,-398.60601362,0.00024462,2]
[425902288,1782033040000,-500.0,0.00027396,2]
[425902287,1782033040000,-500.0,0.00027396,2]
[425902285,1782033040000,-500.0,0.00027396,2]
[425902286,1782033040000,-500.0,0.00027396,2]
[425902284,1782033040000,-536.15970733,0.00027396,2]
[425902289,1782033040000,-500.0,0.00027396,2]
[425902291,1782033040000,-500.0,0.00027396,2]
[425902290,1782033040000,-500.0,0.00027396,2]
[425902282,1782033040000,-536.15970734,0.00027396,2]
[425902269,1782033040000,-255.43730492,0.00027297,2]
[425902283,1782033040000,-536.15970734,0.00027396,2]
[425902276,1782033040000,-500.0,0.00027396,2]
[425902244,1782033040000,-518.16,0.00023574,2]
[425902245,1782033040000,-8538.20829626,0.00023587,2]
[425902248,1782033040000,-1000.0,0.00024658,2]
[425902250,1782033040000,-171.23371776,0.000248,2]
[425902252,1782033040000,-1005.02767128,0.00025043,2]
[425902255,1782033040000,-3647.0,0.00025217,2]
[425902257,1782033040000,-199.02999239,0.00025451,2]
[425902254,1782033040000,-6081.0,0.00025217,2]
[425902259,1782033040000,-1146.4,0.00025786,2]
[425902251,1782033040000,-45796.52157726,0.00025,2]
[425902256,1782033040000,-8538.20829626,0.00025442,2]
[425902260,1782033040000,-431.954703,0.0002642,2]
[425902261,1782033040000,-1005.02767128,0.00026936,2]
[425902262,1782033040000,-303.74650053,0.00027,2]
[425902263,1782033040000,-300.0,0.00027,3]
[425902264,1782033040000,-151.88,0.0002701,2]
[425902265,1782033040000,-511.0,0.00027137,2]
[425902275,1782033040000,-500.0,0.00027396,2]
[425902267,1782033040000,-10000.0,0.00027297,2]
[425902258,1782033040000,-518.45,0.00025786,2]
[425902328,1782033041000,-1203.65,0.00027397,2]
[425902334,1782033041000,-500.0,0.00027397,2]
[425902324,1782033041000,-500.0,0.00027397,2]
[425902327,1782033041000,-500.0,0.00027397,2]
[425902326,1782033041000,-500.0,0.00027397,2]
[425902325,1782033041000,-500.0,0.00027397,2]
[425902332,1782033041000,-500.0,0.00027397,2]
[425902335,1782033041000,-793.21,0.00027397,2]
[425902331,1782033041000,-634.94,0.00027397,2]
[425902319,1782033041000,-500.0,0.00027397,2]
[425902329,1782033041000,-500.0,0.00027397,2]
[425902333,1782033041000,-507.68186157,0.00027397,2]
[425902330,1782033041000,-500.0,0.00027397,2]
[425902342,1782033041000,-500.0,0.00027397,2]
[425902337,1782033041000,-500.0,0.00027397,2]
[425902338,1782033041000,-500.0,0.00027397,2]
[425902344,1782033041000,-500.0,0.00027397,2]
[425902339,1782033041000,-500.0,0.00027397,2]
[425902340,1782033041000,-500.0,0.00027397,2]
[425902347,1782033041000,-500.0,0.00027397,2]
[425902343,1782033041000,-500.0,0.00027397,2]
[425902345,1782033041000,-500.0,0.00027397,2]
[425902318,1782033041000,-573.99323837,0.00027397,2]
[425902341,1782033041000,-500.0,0.00027397,2]
[425902346,1782033041000,-500.0,0.00027397,2]
[425902349,1782033041000,-500.0,0.00027397,2]
[425902336,1782033041000,-500.0,0.00027397,2]
[425902322,1782033041000,-500.0,0.00027397,2]
[425902348,1782033041000,-500.0,0.00027397,2]
[425902320,1782033041000,-500.0,0.00027397,2]
[425902299,1782033041000,-500.0,0.00027397,2]
[425902293,1782033041000,-500.0,0.00027396,2]
[425902292,1782033041000,-506.64029127,0.00027396,2]
[425902294,1782033041000,-500.0,0.00027396,2]
[425902298,1782033041000,-500.0,0.00027397,2]
[425902296,1782033041000,-500.0,0.00027397,2]
[425902295,1782033041000,-500.0,0.00027396,2]
[425902297,1782033041000,-500.0,0.00027397,2]
[425902300,1782033041000,-500.0,0.00027397,2]
[425902301,1782033041000,-500.0,0.00027397,2]
[425902302,1782033041000,-500.0,0.00027397,2]
[425902303,1782033041000,-506.6910939,0.00027397,2]
[425902304,1782033041000,-512.12711123,0.00027397,2]
[425902307,1782033041000,-500.0,0.00027397,2]
[425902305,1782033041000,-500.0,0.00027397,2]
[425902306,1782033041000,-500.0,0.00027397,2]
[425902308,1782033041000,-500.0,0.00027397,2]
[425902309,1782033041000,-500.0,0.00027397,2]
[425902310,1782033041000,-500.0,0.00027397,2]
[425902311,1782033041000,-503.08104312,0.00027397,2]
[425902312,1782033041000,-500.0,0.00027397,2]
[425902313,1782033041000,-500.0,0.00027397,2]
[425902323,1782033041000,-502.84006385,0.00027397,2]
[425902315,1782033041000,-500.0,0.00027397,2]
[425902316,1782033041000,-500.0,0.00027397,2]
[425902314,1782033041000,-534.17,0.00027397,2]
[425902317,1782033041000,-500.0,0.00027397,2]
[425902321,1782033041000,-500.0,0.00027397,2]
[425902359,1782033041000,-500.0,0.00027397,2]
[425902394,1782033041000,-500.0,0.00027397,2]
[425902351,1782033041000,-500.0,0.00027397,2]
[425902382,1782033041000,-500.0,0.00027397,2]
[425902387,1782033041000,-500.0,0.00027397,2]
[425902386,1782033041000,-500.0,0.00027397,2]
[425902388,1782033041000,-580.07,0.00027397,2]
[425902391,1782033041000,-500.0,0.00027397,2]
[425902385,1782033041000,-500.0,0.00027397,2]
[425902395,1782033041000,-500.0,0.00027397,2]
[425902392,1782033041000,-504.3253233,0.00027397,2]
[425902390,1782033041000,-500.0,0.00027397,2]
[425902393,1782033041000,-500.0,0.00027397,2]
[425902396,1782033041000,-500.0,0.00027397,2]
[425902389,1782033041000,-500.0,0.00027397,2]
[425902381,1782033041000,-500.0,0.00027397,2]
[425902410,1782033041000,-500.0,0.00027397,2]
[425902409,1782033041000,-500.0,0.00027397,2]
[425902408,1782033041000,-500.0,0.00027397,2]
[425902400,1782033041000,-500.0,0.00027397,2]
[425902397,1782033041000,-500.0,0.00027397,2]
[425902399,1782033041000,-500.0,0.00027397,2]
[425902401,1782033041000,-500.0,0.00027397,2]
[425902406,1782033041000,-500.0,0.00027397,2]
[425902404,1782033041000,-509.08760568,0.00027397,2]
[425902402,1782033041000,-500.0,0.00027397,2]
[425902407,1782033041000,-572.08726064,0.00027397,2]
[425902403,1782033041000,-500.0,0.00027397,2]
[425902405,1782033041000,-500.0,0.00027397,2]
[425902398,1782033041000,-500.0,0.00027397,2]
[425902380,1782033041000,-500.0,0.00027397,2]
[425902350,1782033041000,-500.0,0.00027397,2]
[425902378,1782033041000,-762.48,0.00027397,2]
[425902353,1782033041000,-500.0,0.00027397,2]
[425902352,1782033041000,-780.63,0.00027397,2]
[425902354,1782033041000,-578.39,0.00027397,2]
[425902357,1782033041000,-500.0,0.00027397,2]
[425902355,1782033041000,-518.89859704,0.00027397,2]
[425902358,1782033041000,-500.0,0.00027397,2]
[425902356,1782033041000,-500.0,0.00027397,2]
[425902377,1782033041000,-500.0,0.00027397,2]
[425902362,1782033041000,-500.0,0.00027397,2]
[425902361,1782033041000,-500.0,0.00027397,2]
[425902363,1782033041000,-500.0,0.00027397,2]
[425902368,1782033041000,-500.0,0.00027397,2]
[425902364,1782033041000,-500.0,0.00027397,2]
[425902360,1782033041000,-500.0,0.00027397,2]
[425902367,1782033041000,-309.26876105,0.00027397,2]
[425902371,1782033041000,-500.0,0.00027397,2]
[425902375,1782033041000,-500.0,0.00027397,2]
[425902376,1782033041000,-500.0,0.00027397,2]
[425902374,1782033041000,-500.0,0.00027397,2]
[425902383,1782033041000,-500.0,0.00027397,2]
[425902384,1782033041000,-500.0,0.00027397,2]
[425902379,1782033041000,-500.0,0.00027397,2]
[425902373,1782033041000,-500.0,0.00027397,2]
[425902370,1782033041000,-500.0,0.00027397,2]
[425902369,1782033041000,-500.0,0.00027397,2]
[425902365,1782033041000,-500.0,0.00027397,2]
[425902366,1782033041000,-320.40893862,0.00027397,2]
[425902372,1782033041000,-500.0,0.00027397,2]
[425902453,1782033042000,-500.0,0.00027397,2]
[425902458,1782033042000,-500.0,0.00027397,2]
[425902447,1782033042000,-500.0,0.00027397,2]
[425902448,1782033042000,-500.0,0.00027397,2]
[425902446,1782033042000,-500.0,0.00027397,2]
[425902452,1782033042000,-500.0,0.00027397,2]
[425902457,1782033042000,-500.0,0.00027397,2]
[425902437,1782033042000,-500.0,0.00027397,2]
[425902440,1782033042000,-500.0,0.00027397,2]
[425902445,1782033042000,-500.0,0.00027397,2]
[425902456,1782033042000,-500.0,0.00027397,2]
[425902449,1782033042000,-500.0,0.00027397,2]
[425902463,1782033042000,-500.0,0.00027397,2]
[425902451,1782033042000,-500.0,0.00027397,2]
[425902455,1782033042000,-500.0,0.00027397,2]
[425902459,1782033042000,-500.0,0.00027397,2]
[425902464,1782033042000,-488.31906995,0.00027397,2]
[425902470,1782033042000,-500.0,0.00027397,2]
[425902462,1782033042000,-500.0,0.00027397,2]